bitfinex/quotes_BTCUSD_20240929
["timestamp","ask_amount","ask_price","bid_price","bid_amount"]
[1727622426896,0.001,65756.0,65755.0,0.177906]
[1727622427352,0.04772273,65756.0,65755.0,0.177906]
[1727622427572,0.001,65756.0,65755.0,0.177906]
[1727622432337,0.001,65756.0,65755.0,0.025827]
[1727622432556,0.04009746,65756.0,65755.0,0.025827]
[1727622432773,0.24088589,65756.0,65755.0,0.025827]
[1727622433006,0.04489854,65756.0,65755.0,0.025827]
[1727622433228,0.19697554,65756.0,65755.0,0.025827]
[1727622433444,0.1989716,65756.0,65755.0,0.025827]
[1727622433886,0.2009716,65756.0,65755.0,0.025827]
[1727622434323,0.1989716,65756.0,65755.0,0.025827]
[1727622435450,0.24426502,65756.0,65755.0,0.025827]
[1727622436169,0.1989716,65756.0,65755.0,0.025827]
[1727622436419,0.24426502,65756.0,65755.0,0.025827]
[1727622436884,0.24626502,65756.0,65755.0,0.025827]
[1727622437334,0.26891173,65756.0,65755.0,0.025827]
[1727622437579,0.26691173,65756.0,65755.0,0.025827]
[1727622437832,0.16487414,65756.0,65755.0,0.025827]
[1727622438361,0.23281427,65756.0,65755.0,0.025827]
[1727622439329,0.38722214,65756.0,65755.0,0.025827]
[1727622439840,0.38703883,65756.0,65755.0,0.025827]
[1727622440304,0.50052753,65756.0,65755.0,0.025827]
[1727622440544,0.49792058,65756.0,65755.0,0.025827]
[1727622441459,0.61140928,65756.0,65755.0,0.025827]
[1727622442381,0.49592058,65756.0,65755.0,0.025827]
[1727622442641,0.38503883,65756.0,65755.0,0.025827]
[1727622443783,0.38703883,65756.0,65755.0,0.025827]
[1727622444027,0.38503883,65756.0,65755.0,0.025827]
[1727622444498,0.38481138,65756.0,65755.0,0.025827]
[1727622444748,0.49795796,65756.0,65755.0,0.025827]
[1727622445240,0.38681138,65756.0,65755.0,0.025827]
[1727622446324,0.38681138,65756.0,65749.0,0.000828]
[1727622446325,0.157091,65750.0,65749.0,0.000828]
[1727622446543,0.37202824,65750.0,65749.0,0.000828]
[1727622446749,0.49245808,65750.0,65749.0,0.000828]
[1727622446957,0.37879963,65750.0,65749.0,0.000828]
[1727622448056,0.37879963,65750.0,65749.0,0.007828]
[1727622448279,0.07496503,65750.0,65749.0,0.40947456]
[1727622448493,0.05223519,65750.0,65749.0,0.40947456]
[1727622448708,0.00677139,65750.0,65749.0,0.40947456]
[1727622448920,0.04948171,65750.0,65749.0,0.40947456]
[1727622449156,0.0454638,65753.0,65752.0,0.152086]
[1727622449375,0.0454638,65753.0,65752.0,0.53721156]
[1727622449598,0.05197091,65753.0,65752.0,0.57954892]
[1727622450046,0.00650711,65753.0,65752.0,0.57954892]
[1727622450703,0.00650711,65753.0,65752.0,0.58254892]
[1727622452238,0.04921438,65753.0,65752.0,0.58254892]
[1727622454724,0.04921438,65753.0,65752.0,0.58106492]
[1727622456103,0.04921438,65753.0,65752.0,0.71695011]
[1727622456761,0.04921438,65753.0,65752.0,0.457774]
[1727622456762,0.09467818,65753.0,65752.0,0.457774]
[1727622457002,0.04921438,65753.0,65752.0,0.457774]
[1727622457449,0.11740802,65753.0,65752.0,0.457774]
[1727622458355,0.11742167,65753.0,65752.0,0.457774]
[1727622458576,0.04921438,65753.0,65752.0,0.457774]
[1727622458801,0.11742167,65753.0,65752.0,0.457774]
[1727622460202,0.04921438,65753.0,65752.0,0.457774]
[1727622461396,0.04921438,65753.0,65752.0,0.458601]
[1727622461864,0.11742167,65753.0,65752.0,0.458601]
[1727622462092,0.04921438,65753.0,65752.0,0.458601]
[1727622462313,0.04921438,65753.0,65752.0,0.003827]
[1727622462540,0.1174332,65753.0,65752.0,0.155913]
[1727622463501,0.04921438,65753.0,65752.0,0.155913]
[1727622463732,0.11743516,65753.0,65752.0,0.155913]
[1727622464403,0.04921438,65753.0,65752.0,0.155913]
[1727622464852,0.11092946,65753.0,65752.0,0.155913]
[1727622465063,0.25765454,65753.0,65752.0,0.155913]
[1727622465286,0.04270727,65753.0,65752.0,0.155913]
[1727622465734,0.11093236,65753.0,65752.0,0.155913]
[1727622465957,0.11093374,65753.0,65752.0,0.155913]
[1727622466916,0.04270727,65753.0,65752.0,0.155913]
[1727622468257,0.11094415,65753.0,65752.0,0.155913]
[1727622468498,0.04270727,65753.0,65752.0,0.155913]
[1727622469417,0.13367145,65753.0,65752.0,0.155913]
[1727622469648,0.34873467,65753.0,65752.0,0.155913]
[1727622469865,0.3285899,65753.0,65752.0,0.155913]
[1727622472105,0.23762572,65753.0,65752.0,0.155913]
[1727622472335,0.3285899,65753.0,65752.0,0.155913]
[1727622472798,0.32869438,65753.0,65752.0,0.155913]
[1727622474717,0.33034838,65753.0,65752.0,0.155913]
[1727622475416,0.23932657,65753.0,65752.0,0.155913]
[1727622476306,0.33035953,65753.0,65752.0,0.155913]
[1727622477406,0.0242165,65753.0,65752.0,0.155913]
[1727622477627,0.11525795,65753.0,65752.0,0.155913]
[1727622477846,0.2169014,65753.0,65752.0,0.155913]
[1727622478060,0.23946561,65753.0,65752.0,0.155913]
[1727622478295,0.02421821,65753.0,65752.0,0.155913]
[1727622479675,0.23942272,65753.0,65752.0,0.155913]
[1727622479950,0.02421821,65753.0,65752.0,0.155913]
[1727622481148,0.33036736,65753.0,65752.0,0.155913]
[1727622481610,0.23945367,65753.0,65752.0,0.155913]
[1727622482997,0.09250509,65753.0,65752.0,0.155913]
[1727622483241,0.09250695,65753.0,65752.0,0.155913]
[1727622483746,0.0923239,65753.0,65752.0,0.155913]
[1727622484235,0.0923239,65753.0,65752.0,0.24821628]
[1727622484482,0.02403516,65753.0,65752.0,0.155913]
[1727622484719,0.00147095,65753.0,65752.0,0.155913]
[1727622484967,0.02403805,65753.0,65752.0,0.155913]
[1727622485438,0.0695705,65753.0,65752.0,0.155913]
[1727622487386,0.02403805,65753.0,65752.0,0.155913]
[1727622487870,0.06957153,65753.0,65752.0,0.155913]
[1727622489399,0.02403805,65753.0,65752.0,0.155913]
[1727622491216,0.0923398,65753.0,65752.0,0.155913]
[1727622492389,0.02403805,65753.0,65752.0,0.155913]
[1727622493591,0.33027806,65753.0,65752.0,0.155913]
[1727622494318,0.37581256,65753.0,65752.0,0.003827]
[1727622494545,0.23920906,65753.0,65752.0,0.003827]
[1727622494789,0.23851037,65753.0,65752.0,0.003827]
[1727622495008,0.37514574,65753.0,65752.0,0.003827]
[1727622495237,0.24351037,65753.0,65752.0,0.003827]
[1727622496625,0.38010083,65753.0,65752.0,0.000827]
[1727622496850,0.38210083,65753.0,65752.0,0.000827]
[1727622497321,0.3820993,65753.0,65752.0,0.000827]
[1727622497782,0.5341833,65753.0,65752.0,0.000827]
[1727622498026,0.5361833,65753.0,65752.0,0.000827]
[1727622498537,0.56098243,65753.0,65752.0,0.000827]
[1727622498802,0.56098243,65753.0,65749.0,0.000828]
[1727622498803,0.50629437,65753.0,65749.0,0.000828]
[1727622499072,0.29364084,65750.0,65749.0,0.000828]
[1727622499324,0.50811316,65750.0,65749.0,0.000828]
[1727622499572,0.52914653,65750.0,65749.0,0.000828]
[1727622500750,0.53114653,65750.0,65749.0,0.000828]
[1727622501430,0.3945988,65750.0,65749.0,0.000828]
[1727622501715,0.3945988,65750.0,65749.0,0.002828]
[1727622501931,0.3925988,65750.0,65749.0,0.002828]
[1727622502179,0.3925988,65750.0,65749.0,0.003828]
[1727622502941,0.3925988,65750.0,65749.0,0.000828]
[1727622503157,0.3935988,65750.0,65749.0,0.000828]
[1727622503612,0.3925988,65750.0,65749.0,0.000828]
[1727622504139,0.18000739,65750.0,65749.0,0.000828]
[1727622504334,0.39638013,65750.0,65749.0,0.000828]
[1727622504612,0.39238013,65750.0,65749.0,0.000828]
[1727622505097,0.40038013,65750.0,65749.0,0.000828]
[1727622507756,0.40238013,65750.0,65749.0,0.000828]
[1727622509035,0.24828913,65750.0,65749.0,0.000828]
[1727622509282,0.25328913,65750.0,65749.0,0.000828]
[1727622509499,0.25328913,65750.0,65749.0,0.152921]
[1727622509712,0.36693616,65750.0,65749.0,0.152921]
[1727622510356,0.25328913,65750.0,65749.0,0.152921]
[1727622510567,0.27712752,65750.0,65749.0,0.152921]
[1727622511216,0.27212752,65750.0,65749.0,0.152921]
[1727622511436,0.27712752,65750.0,65749.0,0.152921]
[1727622512043,0.26712752,65750.0,65749.0,0.152921]
[1727622512045,0.09910394,65750.0,65749.0,0.152921]
[1727622512245,0.07637589,65750.0,65749.0,0.152921]
[1727622512443,0.03091639,65750.0,65749.0,0.152921]
[1727622512646,0.03091639,65750.0,65749.0,0.231021]
[1727622512846,0.03091639,65750.0,65749.0,0.324021]
[1727622513252,0.03091639,65750.0,65749.0,0.42645971]
[1727622514914,0.03091639,65750.0,65749.0,0.324021]
[1727622515137,0.03091639,65750.0,65749.0,0.424021]
[1727622515361,0.008,65750.0,65749.0,0.424021]
[1727622515810,0.00147095,65753.0,65749.0,0.424021]
[1727622515811,0.00147095,65753.0,65752.0,0.152086]
[1727622516033,0.00147095,65753.0,65752.0,0.54755428]
[1727622516723,0.00147095,65753.0,65752.0,0.50911077]
[1727622517415,0.00147095,65753.0,65752.0,0.66439871]
[1727622518977,0.00247095,65753.0,65752.0,0.66539871]
[1727622519220,0.00347095,65753.0,65752.0,0.69510382]
[1727622521117,0.00347095,65753.0,65752.0,0.67939871]
[1727622521338,0.00347095,65753.0,65752.0,0.83578677]
[1727622522460,0.00347095,65753.0,65752.0,0.85153507]
[1727622522679,0.00347095,65753.0,65752.0,0.83578677]
[1727622524960,0.00347095,65753.0,65752.0,0.85152498]
[1727622525174,0.00347095,65753.0,65752.0,0.53984898]
[1727622525607,0.00347095,65753.0,65752.0,0.52411077]
[1727622525840,0.00347095,65753.0,65752.0,0.443186]
[1727622526071,0.00347095,65753.0,65752.0,0.337086]
[1727622526295,0.00347095,65753.0,65752.0,0.257586]
[1727622526955,0.00247095,65753.0,65752.0,0.243586]
[1727622527424,0.00347095,65753.0,65752.0,0.247586]
[1727622527647,0.00347095,65753.0,65752.0,0.243586]
[1727622527887,0.00347095,65753.0,65752.0,0.246586]
[1727622528328,0.00447095,65753.0,65752.0,0.247586]
[1727622528796,0.00347095,65753.0,65752.0,0.246586]
[1727622529028,0.00447095,65753.0,65752.0,0.247586]
[1727622530641,0.00447095,65753.0,65752.0,0.32851077]
[1727622538125,0.00447095,65753.0,65752.0,0.105]
[1727622538352,0.00447095,65753.0,65752.0,0.18592477]
[1727622538572,0.02767894,65753.0,65752.0,0.18592477]
[1727622539063,0.02767894,65753.0,65752.0,0.33801077]
[1727622539237,0.02767894,65753.0,65752.0,0.18592477]
[1727622539446,0.00447095,65753.0,65752.0,0.08592477]
[1727622539654,0.02767894,65753.0,65752.0,0.08592477]
[1727622540135,0.02767894,65753.0,65752.0,0.23801077]
[1727622540470,0.02767894,65753.0,65752.0,0.33801077]
[1727622540694,0.02767894,65753.0,65752.0,0.18592477]
[1727622542180,0.02767894,65753.0,65752.0,0.33801077]
[1727622542317,0.02767894,65753.0,65752.0,0.18592477]
[1727622542529,0.02767894,65753.0,65752.0,0.08592477]
[1727622542747,0.00447095,65753.0,65752.0,0.33801077]
[1727622543199,0.02765994,65753.0,65752.0,0.33801077]
[1727622543624,0.00447095,65753.0,65752.0,0.33801077]
[1727622544460,0.00447095,65753.0,65752.0,0.33883777]
[1727622549495,0.02766074,65753.0,65752.0,0.33883777]
[1727622550602,0.02766074,65753.0,65752.0,0.08675177]
[1727622551019,0.02766074,65753.0,65752.0,0.005827]
[1727622551232,0.18474474,65753.0,65752.0,0.005827]
[1727622551889,0.19174474,65753.0,65752.0,0.005827]
[1727622553169,0.18974474,65753.0,65752.0,0.005827]
[1727622553378,0.23718042,65753.0,65752.0,0.005827]
[1727622554288,0.08511408,65753.0,65752.0,0.005827]
[1727622554529,0.08311408,65753.0,65752.0,0.005827]
[1727622554996,0.23519808,65753.0,65752.0,0.005827]
[1727622557211,0.00452459,65753.0,65752.0,0.005827]
[1727622557459,0.35119214,65753.0,65752.0,0.005827]
[1727622557686,0.50327614,65753.0,65752.0,0.005827]
[1727622558354,0.35284614,65753.0,65752.0,0.157913]
[1727622558576,0.12003755,65753.0,65752.0,0.31591183]
[1727622558814,0.12003778,65753.0,65752.0,0.31591183]
[1727622559027,0.05183202,65753.0,65752.0,0.31591183]
[1727622559258,0.12003778,65753.0,65752.0,0.31591183]
[1727622560346,0.12003778,65753.0,65752.0,0.238713]
[1727622563429,0.1200418,65753.0,65752.0,0.238713]
[1727622565187,0.05183202,65753.0,65752.0,0.238713]
[1727622565635,0.26134754,65753.0,65752.0,0.238713]
[1727622566068,0.26134754,65753.0,65752.0,0.157913]
[1727622566293,0.35229392,65753.0,65752.0,0.157913]
[1727622567394,0.26134754,65753.0,65752.0,0.157913]
[1727622568049,0.26126833,65753.0,65752.0,0.157913]
[1727622568481,0.37502858,65753.0,65752.0,0.157913]
[1727622568934,0.37052358,65753.0,65752.0,0.157913]
[1727622569381,0.25676333,65753.0,65752.0,0.157913]
[1727622570016,0.25676333,65753.0,65752.0,0.005827]
[1727622570479,0.25676333,65753.0,65752.0,0.004827]
[1727622570718,0.25676333,65753.0,65752.0,0.006827]
[1727622571162,0.25676333,65753.0,65752.0,0.000827]
[1727622571576,0.25676333,65753.0,65752.0,0.002827]
[1727622571786,0.25676333,65753.0,65752.0,0.006827]
[1727622572443,0.25676333,65753.0,65752.0,0.24429313]
[1727622572886,0.25676333,65753.0,65752.0,0.34059313]
[1727622572887,0.13842254,65753.0,65752.0,0.34059313]
[1727622573091,0.34669267,65753.0,65752.0,0.34059313]
[1727622573773,0.11565016,65753.0,65752.0,0.34059313]
[1727622574010,0.04732702,65753.0,65752.0,0.34059313]
[1727622574762,0.04732702,65753.0,65752.0,0.33910913]
[1727622575244,0.11564727,65753.0,65752.0,0.33910913]
[1727622577410,0.11564366,65753.0,65752.0,0.33910913]
[1727622578776,0.11564366,65753.0,65752.0,0.35515164]
[1727622580103,0.02712028,65753.0,65752.0,0.35515164]
[1727622580318,0.07266337,65753.0,65752.0,0.35027151]
[1727622580567,0.02712028,65753.0,65752.0,0.35027151]
[1727622580807,0.02712028,65753.0,65752.0,0.334229]
[1727622581456,0.02712028,65753.0,65752.0,0.434229]
[1727622581879,0.001654,65753.0,65752.0,0.434229]
[1727622582133,0.001654,65753.0,65752.0,0.57104121]
[1727622582345,0.001654,65753.0,65752.0,0.5867338]
[1727622583850,0.001654,65753.0,65752.0,0.5857338]
[1727622584061,0.002654,65753.0,65752.0,0.5997338]
[1727622584295,0.002654,65753.0,65752.0,0.5967338]
[1727622584495,0.002654,65753.0,65752.0,0.6017338]
[1727622584496,0.003654,65753.0,65752.0,0.6017338]
[1727622584918,0.003654,65753.0,65752.0,0.58552521]
[1727622585396,0.003654,65753.0,65752.0,0.6015869]
[1727622588767,0.003654,65753.0,65752.0,0.58552521]
[1727622592596,0.003654,65753.0,65752.0,0.60148424]
[1727622594111,0.003654,65753.0,65752.0,0.5455968]
[1727622595233,0.003654,65753.0,65752.0,0.3687968]
[1727622598210,0.003654,65753.0,65752.0,0.35283777]
[1727622600587,0.003654,65753.0,65752.0,0.3687968]
[1727622601093,0.002654,65753.0,65752.0,0.3547968]
[1727622601442,0.003654,65753.0,65752.0,0.67771034]
[1727622601720,0.003654,65753.0,65752.0,0.67271034]
[1727622601721,0.002654,65753.0,65752.0,0.67271034]
[1727622602696,0.003654,65753.0,65752.0,0.67771034]
[1727622603685,0.003654,65753.0,65752.0,0.5492968]
[1727622604375,0.003654,65753.0,65752.0,0.4507968]
[1727622604615,0.003654,65753.0,65752.0,0.28787203]
[1727622604850,0.003654,65753.0,65752.0,0.2687968]
[1727622605514,0.02814139,65753.0,65752.0,0.2637968]
[1727622605733,0.001654,65753.0,65752.0,0.2497968]
[1727622605957,0.02813267,65753.0,65752.0,0.2547968]
[1727622606176,0.003654,65753.0,65752.0,0.2617968]
[1727622606394,0.02913267,65753.0,65752.0,0.2617968]
[1727622607532,0.02913267,65753.0,65752.0,0.24583777]
[1727622607744,0.02913267,65753.0,65752.0,0.09375177]
[1727622608199,0.07460264,65753.0,65752.0,0.09375177]
[1727622608641,0.07460331,65753.0,65752.0,0.09375177]
[1727622609157,0.07460331,65753.0,65752.0,0.24583777]
[1727622609373,0.07460331,65753.0,65752.0,0.09375177]
[1727622609590,0.07460331,65753.0,65752.0,0.24583777]
[1727622610689,0.07460331,65753.0,65752.0,0.09375177]
[1727622611607,0.02913267,65753.0,65752.0,0.24583777]
[1727622611819,0.07460331,65753.0,65752.0,0.24583777]
[1727622614839,0.07460331,65753.0,65752.0,0.012827]
[1727622614840,0.22668731,65753.0,65752.0,0.012827]
[1727622615085,0.09733864,65753.0,65752.0,0.012827]
[1727622615318,0.24941789,65753.0,65752.0,0.012827]
[1727622615525,0.18121667,65753.0,65752.0,0.012827]
[1727622615733,0.18021667,65753.0,65752.0,0.007827]
[1727622615944,0.17921667,65753.0,65752.0,0.000827]
[1727622616159,0.17921667,65753.0,65752.0,0.003827]
[1727622616390,0.09533267,65753.0,65752.0,0.003827]
[1727622616660,0.24741667,65753.0,65752.0,0.003827]
[1727622617547,0.24741667,65753.0,65752.0,0.000827]
[1727622617778,0.24741667,65753.0,65752.0,0.004827]
[1727622618001,0.24739571,65753.0,65752.0,0.004827]
[1727622618218,0.24739571,65753.0,65752.0,0.000827]
[1727622618435,0.24839571,65753.0,65752.0,0.000827]
[1727622618652,0.09631171,65753.0,65752.0,0.000827]
[1727622618865,0.25039571,65753.0,65752.0,0.000827]
[1727622620911,0.09831171,65753.0,65752.0,0.000827]
[1727622621124,0.25039571,65753.0,65752.0,0.000827]
[1727622621342,0.09831171,65753.0,65752.0,0.000827]
[1727622622206,0.25039571,65753.0,65752.0,0.000827]
[1727622623133,0.03013267,65753.0,65752.0,0.000827]
[1727622623565,0.18221667,65753.0,65752.0,0.000827]
[1727622623777,0.25177687,65753.0,65752.0,0.000827]
[1727622624718,0.34264766,65753.0,65752.0,0.000827]
[1727622624924,0.25177687,65753.0,65752.0,0.000827]
[1727622626428,0.34263915,65753.0,65752.0,0.000827]
[1727622627116,0.34463915,65753.0,65752.0,0.000827]
[1727622627578,0.34263915,65753.0,65752.0,0.000827]
[1727622628247,0.3675305,65753.0,65752.0,0.000827]
[1727622629959,0.3675305,65753.0,65751.0,0.07675177]
[1727622630188,0.2216442,65752.0,65751.0,0.07675177]
[1727622630434,0.2216442,65752.0,65751.0,0.22883977]
[1727622630435,0.06815405,65752.0,65751.0,0.22883977]
[1727622631130,0.10602889,65753.0,65751.0,0.22883977]
[1727622631345,0.03985741,65752.0,65751.0,0.22883977]
[1727622631788,0.05037857,65752.0,65751.0,0.22883977]
[1727622632073,0.03985741,65752.0,65751.0,0.22883977]
[1727622632315,0.0945394,65753.0,65752.0,0.152086]
[1727622632541,0.06817077,65754.0,65753.0,0.16312093]
[1727622632800,0.001654,65755.0,65753.0,0.16312093]
[1727622632801,0.04710248,65755.0,65754.0,0.152082]
[1727622633028,0.04710248,65755.0,65754.0,0.247182]
[1727622633029,0.001654,65755.0,65754.0,0.247182]
[1727622633316,0.001654,65755.0,65754.0,0.327482]
[1727622633564,0.001654,65755.0,65754.0,0.45162768]
[1727622634266,0.001654,65755.0,65754.0,0.45062768]
[1727622635140,0.001654,65755.0,65754.0,0.45962768]
[1727622637404,0.001654,65755.0,65754.0,0.335482]
[1727622645605,0.001654,65755.0,65754.0,0.160082]
[1727622645821,0.003654,65755.0,65754.0,0.160082]
[1727622646054,0.07239887,65755.0,65754.0,0.009]
[1727622646279,0.04713479,65755.0,65754.0,0.009]
[1727622646487,0.07239887,65755.0,65754.0,0.009]
[1727622646696,0.02691808,65755.0,65754.0,0.161082]
[1727622647512,0.02691808,65755.0,65754.0,0.009]
[1727622647763,0.02891808,65755.0,65754.0,0.009]
[1727622649425,0.09711869,65755.0,65754.0,0.009]
[1727622649845,0.02891808,65755.0,65754.0,0.009]
[1727622650298,0.09711869,65755.0,65754.0,0.009]
[1727622650486,0.09711869,65755.0,65754.0,0.161082]
[1727622651956,0.09511869,65755.0,65754.0,0.161082]
[1727622652163,0.09711869,65755.0,65754.0,0.161082]
[1727622652840,0.09511869,65755.0,65754.0,0.161082]
[1727622653745,0.09711869,65755.0,65754.0,0.161082]
[1727622653957,0.09711869,65755.0,65754.0,0.009]
[1727622655456,0.02891808,65755.0,65754.0,0.009]
[1727622655661,0.09712893,65755.0,65754.0,0.009]
[1727622656183,0.09512893,65755.0,65754.0,0.009]
[1727622656397,0.02691808,65755.0,65754.0,0.161082]
[1727622660415,0.02691808,65755.0,65754.0,0.243482]
[1727622660628,0.07239461,65755.0,65754.0,0.243482]
[1727622662684,0.07239461,65755.0,65754.0,0.009]
[1727622663313,0.02691808,65755.0,65754.0,0.009]
[1727622663926,0.02891808,65755.0,65754.0,0.009827]
[1727622664746,0.02691808,65755.0,65754.0,0.009827]
[1727622666897,0.02891808,65755.0,65754.0,0.009827]
[1727622667535,0.02691808,65755.0,65754.0,0.009827]
[1727622667823,0.02691808,65755.0,65754.0,0.161909]
[1727622670402,0.09513202,65755.0,65754.0,0.161909]
[1727622670626,0.09513202,65755.0,65754.0,0.26489508]
[1727622670842,0.02691808,65755.0,65754.0,0.26489508]
[1727622671072,0.02691808,65755.0,65754.0,0.44109508]
[1727622671073,0.001654,65755.0,65754.0,0.44109508]
[1727622671276,0.02691626,65755.0,65754.0,0.44109508]
[1727622671492,0.001654,65755.0,65754.0,0.44109508]
[1727622672121,0.04549356,65757.0,65754.0,0.28901308]
[1727622672351,0.06821394,65769.0,65762.0,0.1]
[1727622672561,0.001654,65770.0,65769.0,0.152047]
[1727622672990,0.001654,65770.0,65769.0,0.234447]
[1727622673418,0.001654,65770.0,65769.0,0.35721708]
[1727622674528,0.001654,65770.0,65769.0,0.36221708]
[1727622674734,0.001654,65770.0,65769.0,0.36721708]
[1727622674944,0.001654,65770.0,65769.0,0.244447]
[1727622677895,0.001654,65770.0,65769.0,0.343347]
[1727622694868,0.001654,65770.0,65769.0,0.162047]
[1727622695098,0.001654,65770.0,65769.0,0.24297177]
[1727622703007,0.003654,65770.0,65769.0,0.24297177]
[1727622703613,0.001654,65770.0,65769.0,0.24297177]
[1727622704063,0.02739951,65770.0,65769.0,0.24297177]
[1727622704901,0.26304451,65770.0,65769.0,0.01]
[1727622705277,0.30840987,65770.0,65769.0,0.01]
[1727622706088,0.15636487,65770.0,65769.0,0.005]
[1727622706654,0.30840987,65770.0,65768.0,0.08092477]
[1727622707122,0.002,65769.0,65768.0,0.08092477]
[1727622707541,0.02774458,65769.0,65768.0,0.23297377]
[1727622707748,0.02774458,65769.0,65768.0,0.08092477]
[1727622708420,0.07310994,65769.0,65768.0,0.08092477]
[1727622709337,0.07310994,65769.0,65768.0,0.23297377]
[1727622709572,0.07310994,65769.0,65768.0,0.08092477]
[1727622709573,0.07110994,65769.0,65768.0,0.08092477]
[1727622710381,0.02574458,65769.0,65768.0,0.08192477]
[1727622710794,0.02574458,65769.0,65768.0,0.08292477]
[1727622711003,0.07115464,65769.0,65768.0,0.23497377]
[1727622711449,0.02574458,65769.0,65768.0,0.23497377]
[1727622711879,0.02574458,65769.0,65768.0,0.08292477]
[1727622712319,0.09379263,65769.0,65768.0,0.08292477]
[1727622713008,0.09379263,65769.0,65768.0,0.23497377]
[1727622713219,0.09379263,65769.0,65768.0,0.08292477]
[1727622714071,0.24583963,65769.0,65768.0,0.08292477]
[1727622714508,0.02574458,65769.0,65768.0,0.08292477]
[1727622714723,0.17779158,65769.0,65768.0,0.08292477]
[1727622715157,0.02574458,65769.0,65768.0,0.08292477]
[1727622715386,0.09392291,65769.0,65768.0,0.08292477]
[1727622715821,0.09395024,65769.0,65768.0,0.08292477]
[1727622716056,0.02574458,65769.0,65768.0,0.08292477]
[1727622716261,0.17779158,65769.0,65768.0,0.08292477]
[1727622716464,0.32575735,65769.0,65768.0,0.08292477]
[1727622716869,0.47780435,65769.0,65768.0,0.08292477]
[1727622717310,0.23481647,65769.0,65768.0,0.08292477]
[1727622717514,0.38686347,65769.0,65768.0,0.08292477]
[1727622718130,0.23481647,65769.0,65768.0,0.08292477]
[1727622718465,0.26878451,65769.0,65768.0,0.08292477]
[1727622718682,0.3258094,65769.0,65768.0,0.08292477]
[1727622719697,0.4778564,65769.0,65768.0,0.08292477]
[1727622720140,0.3258094,65769.0,65768.0,0.08292477]
[1727622720551,0.47789264,65769.0,65768.0,0.08292477]
[1727622721183,0.47989264,65769.0,65768.0,0.08292477]
[1727622721397,0.3889013,65769.0,65768.0,0.08292477]
[1727622721578,0.02774458,65769.0,65768.0,0.08292477]
[1727622721817,0.38896755,65769.0,65768.0,0.08292477]
[1727622722427,0.38696755,65769.0,65768.0,0.08292477]
[1727622722700,0.23492055,65769.0,65768.0,0.08292477]
[1727622725215,0.23492055,65769.0,65768.0,0.23497377]
[1727622725657,0.23492055,65769.0,65768.0,0.08292477]
[1727622726134,0.23692055,65769.0,65768.0,0.08292477]
[1727622726338,0.23492055,65769.0,65768.0,0.08292477]
[1727622726966,0.23492055,65769.0,65768.0,0.23497377]
[1727622727891,0.32591189,65769.0,65768.0,0.23497377]
[1727622728128,0.23492055,65769.0,65768.0,0.23497377]
[1727622728609,0.32591189,65769.0,65768.0,0.23497377]
[1727622731332,0.32591189,65769.0,65768.0,0.08292477]
[1727622732040,0.32591189,65769.0,65768.0,0.23497377]
[1727622732253,0.32591189,65769.0,65768.0,0.08292477]
[1727622733228,0.47795889,65769.0,65768.0,0.002]
[1727622733478,0.32591189,65769.0,65768.0,0.002]
[1727622733720,0.32756589,65769.0,65768.0,0.002]
[1727622733935,0.47961289,65769.0,65768.0,0.002]
[1727622734158,0.32756589,65769.0,65768.0,0.002]
[1727622734370,0.32956589,65769.0,65768.0,0.002]
[1727622734583,0.23857455,65769.0,65768.0,0.002]
[1727622735056,0.32959569,65769.0,65768.0,0.002]
[1727622735267,0.23857455,65769.0,65768.0,0.002]
[1727622735481,0.32959795,65769.0,65768.0,0.002]
[1727622735702,0.23857455,65769.0,65768.0,0.002]
[1727622737245,0.23657455,65769.0,65768.0,0.154049]
[1727622737679,0.23657455,65769.0,65768.0,0.002]
[1727622738343,0.23657455,65769.0,65768.0,0.154049]
[1727622738770,0.23657455,65769.0,65768.0,0.002]
[1727622739457,0.35031373,65769.0,65768.0,0.002]
[1727622740942,0.35031373,65769.0,65768.0,0.154049]
[1727622741166,0.32764126,65769.0,65768.0,0.154049]
[1727622741417,0.23709756,65769.0,65768.0,0.154049]
[1727622741631,0.09570629,65769.0,65768.0,0.154049]
[1727622742248,0.02739858,65769.0,65768.0,0.154049]
[1727622742649,0.001654,65769.0,65768.0,0.154049]
[1727622743687,0.21133227,65769.0,65768.0,0.154049]
[1727622743907,0.02739596,65769.0,65768.0,0.154049]
[1727622744167,0.09570712,65769.0,65768.0,0.154049]
[1727622744381,0.06996516,65769.0,65768.0,0.154049]
[1727622744600,0.09570712,65769.0,65768.0,0.44163762]
[1727622744810,0.001654,65769.0,65768.0,0.71223762]
[1727622745653,0.001654,65769.0,65768.0,0.72294996]
[1727622746706,0.001654,65769.0,65768.0,0.72194996]
[1727622746911,0.001654,65769.0,65768.0,0.72094996]
[1727622747118,0.002654,65769.0,65768.0,0.74594996]
[1727622750734,0.002654,65769.0,65768.0,0.73523762]
[1727622753546,0.002654,65769.0,65768.0,0.60293694]
[1727622755789,0.002654,65769.0,65768.0,0.68386171]
[1727622759638,0.002654,65769.0,65768.0,0.60293694]
[1727622759843,0.002654,65769.0,65768.0,0.68386171]
[1727622767791,0.002654,65769.0,65768.0,0.52857377]
[1727622769558,0.002654,65769.0,65768.0,0.447649]
[1727622769773,0.002654,65769.0,65768.0,0.52857377]
[1727622772149,0.002654,65769.0,65768.0,0.367749]
[1727622772373,0.004654,65769.0,65768.0,0.177049]
[1727622772588,0.09866722,65769.0,65768.0,0.025]
[1727622772796,0.39807102,65769.0,65768.0,0.025]
[1727622773000,0.32944945,65769.0,65768.0,0.025]
[1727622773214,0.48149645,65769.0,65768.0,0.025]
[1727622773492,0.38949364,65769.0,65768.0,0.014]
[1727622773694,0.002,65766.0,65765.0,0.08092477]
[1727622773902,0.09301057,65766.0,65765.0,0.08092477]
[1727622774109,0.11876821,65766.0,65765.0,0.08092477]
[1727622774529,0.32679973,65766.0,65765.0,0.08092477]
[1727622774969,0.32679973,65766.0,65765.0,0.08492477]
[1727622775382,0.23578916,65766.0,65765.0,0.08492477]
[1727622775583,0.32678398,65766.0,65765.0,0.08492477]
[1727622776160,0.02775764,65766.0,65765.0,0.08492477]
[1727622776372,0.23516408,65766.0,65765.0,0.08492477]
[1727622776604,0.02775764,65766.0,65765.0,0.08492477]
[1727622776807,0.09599992,65766.0,65765.0,0.08492477]
[1727622777428,0.09599992,65766.0,65765.0,0.08892477]
[1727622777654,0.02775764,65766.0,65765.0,0.08892477]
[1727622778071,0.02775764,65766.0,65765.0,0.24098077]
[1727622780687,0.02775764,65766.0,65765.0,0.08892477]